[Event "*** Titled Tuesday Blitz"]
[Site "Chess.com"]
[Date "2021.04.06"]
[Round "9"]
[White "IriBu"]
[Black "Trickov"]
[Result "1-0"]
[WhiteElo "2551"]
[BlackElo "2395"]
[TimeControl "180+1"]
[EndTime "11:47:01 PDT"]
[Termination "IriBu won on time"]

1. e4 {[%clk 0:02:51.9]} 1... c5 {[%clk 0:02:56.3]} 2. Be2 {[%clk 0:02:51]} 2...
Nc6 {[%clk 0:02:55.3]} 3. f4 {[%clk 0:02:51.4]} 3... g6 {[%clk 0:02:55.1]} 4.
Nf3 {[%clk 0:02:51.8]} 4... Bg7 {[%clk 0:02:55.3]} 5. O-O {[%clk 0:02:52.5]}
5... d5 {[%clk 0:02:54.3]} 6. e5 {[%clk 0:02:52.5]} 6... Bg4 {[%clk 0:02:53.3]}
7. c3 {[%clk 0:02:51.5]} 7... e6 {[%clk 0:02:52.4]} 8. d3 {[%clk 0:02:50.8]}
8... Nge7 {[%clk 0:02:52.2]} 9. Be3 {[%clk 0:02:51]} 9... b6 {[%clk 0:02:51.9]}
10. d4 {[%clk 0:02:50.3]} 10... c4 {[%clk 0:02:47.2]} 11. Nbd2 {[%clk
0:02:46.6]} 11... O-O {[%clk 0:02:44.9]} 12. h3 {[%clk 0:02:45.8]} 12... Bxf3
{[%clk 0:02:44.5]} 13. Nxf3 {[%clk 0:02:46.7]} 13... b5 {[%clk 0:02:42.4]} 14.
a3 {[%clk 0:02:45.8]} 14... a5 {[%clk 0:02:41.7]} 15. Bf2 {[%clk 0:02:42.2]}
15... b4 {[%clk 0:02:40.1]} 16. Bh4 {[%clk 0:02:38.2]} 16... Qb6 {[%clk
0:02:36.4]} 17. Bf6 {[%clk 0:02:37.1]} 17... Nf5 {[%clk 0:02:29]} 18. Qd2 {[%clk
0:02:33.7]} 18... Ng3 {[%clk 0:02:25.4]} 19. Rfd1 {[%clk 0:02:30.6]} 19... Ne4
{[%clk 0:02:24.1]} 20. Qe3 {[%clk 0:02:28.9]} 20... Nxf6 {[%clk 0:02:23.4]} 21.
exf6 {[%clk 0:02:28]} 21... Bxf6 {[%clk 0:02:23.3]} 22. Ne5 {[%clk 0:02:28]}
22... Bg7 {[%clk 0:02:14.1]} 23. Nd7 {[%clk 0:02:26.6]} 23... Qc7 {[%clk
0:02:08.1]} 24. Nxf8 {[%clk 0:02:26.7]} 24... Rxf8 {[%clk 0:02:07]} 25. axb4
{[%clk 0:02:26.8]} 25... axb4 {[%clk 0:02:06.5]} 26. g3 {[%clk 0:02:22.9]} 26...
Qb6 {[%clk 0:02:02.7]} 27. Kg2 {[%clk 0:02:21.6]} 27... Rb8 {[%clk 0:02:00.9]}
28. Bf3 {[%clk 0:02:15.3]} 28... Na5 {[%clk 0:01:57.7]} 29. Ra4 {[%clk
0:02:03.1]} 29... bxc3 {[%clk 0:01:42.7]} 30. bxc3 {[%clk 0:02:04]} 30... Qb5
{[%clk 0:01:39.6]} 31. Rb4 {[%clk 0:01:59.5]} 31... Qe8 {[%clk 0:01:37.4]} 32.
Rdb1 {[%clk 0:01:56.3]} 32... Nb3 {[%clk 0:01:24.6]} 33. Rxb8 {[%clk 0:01:54.8]}
33... Qxb8 {[%clk 0:01:24]} 34. Bd1 {[%clk 0:01:55.4]} 34... h5 {[%clk
0:01:19.7]} 35. h4 {[%clk 0:01:52.9]} 35... Qa7 {[%clk 0:01:09.9]} 36. Bxb3
{[%clk 0:01:44.6]} 36... cxb3 {[%clk 0:01:09]} 37. Qe2 {[%clk 0:01:44.8]} 37...
Qa4 {[%clk 0:01:03.5]} 38. Rb2 {[%clk 0:01:43]} 38... Qc4 {[%clk 0:00:54.3]} 39.
Qxc4 {[%clk 0:01:08.8]} 39... dxc4 {[%clk 0:00:53.9]} 40. Kf3 {[%clk 0:01:08.8]}
40... Kf8 {[%clk 0:00:46.8]} 41. Ke4 {[%clk 0:01:07.7]} 41... Ke7 {[%clk
0:00:46.3]} 42. Rb1 {[%clk 0:01:07.1]} 42... Kd6 {[%clk 0:00:43.5]} 43. Ra1
{[%clk 0:01:06.6]} 43... f5+ {[%clk 0:00:42.7]} 44. Ke3 {[%clk 0:01:06.4]} 44...
Bf8 {[%clk 0:00:40.1]} 45. Kd2 {[%clk 0:00:57.1]} 45... Kd5 {[%clk 0:00:36.1]}
46. Ke3 {[%clk 0:00:47.9]} 46... Kc6 {[%clk 0:00:33.2]} 47. Ra8 {[%clk
0:00:38.2]} 47... Bd6 {[%clk 0:00:31.6]} 48. Kd2 {[%clk 0:00:35.6]} 48... Kd5
{[%clk 0:00:29.5]} 49. Rd8 {[%clk 0:00:35.4]} 49... Kc6 {[%clk 0:00:27.9]} 50.
Kc1 {[%clk 0:00:35.7]} 50... Bc7 {[%clk 0:00:19.6]} 51. Rg8 {[%clk 0:00:33.9]}
51... Kd5 {[%clk 0:00:18.2]} 52. Rxg6 {[%clk 0:00:34.1]} 52... Ba5 {[%clk
0:00:16.7]} 53. Kb2 {[%clk 0:00:33.3]} 53... Ke4 {[%clk 0:00:15.1]} 54. d5
{[%clk 0:00:26.8]} 54... exd5 {[%clk 0:00:10.1]} 55. Ra6 {[%clk 0:00:26.5]}
55... Bc7 {[%clk 0:00:09.2]} 56. Re6+ {[%clk 0:00:22.5]} 56... Kd3 {[%clk
0:00:08.5]} 57. Ra6 {[%clk 0:00:18]} 57... Bd8 {[%clk 0:00:07.3]} 58. g4 {[%clk
0:00:12.3]} 58... fxg4 {[%clk 0:00:05.7]} 59. f5 {[%clk 0:00:10.5]} 59... g3
{[%clk 0:00:04.7]} 60. Rg6 {[%clk 0:00:09.8]} 1-0

[Event "*** Titled Tuesday Blitz"]
[Site "Chess.com"]
[Date "2021.04.06"]
[Round "9"]
[White "Angry_Twin"]
[Black "jefferyx"]
[Result "1/2-1/2"]
[WhiteElo "2898"]
[BlackElo "2977"]
[TimeControl "180+1"]
[EndTime "11:47:05 PDT"]
[Termination "Game drawn - insufficient material"]

1. e4 {[%clk 0:03:00.9]} 1... c5 {[%clk 0:02:59]} 2. Nf3 {[%clk 0:03:01.5]} 2...
d6 {[%clk 0:02:58.9]} 3. Bb5+ {[%clk 0:03:02.1]} 3... Nd7 {[%clk 0:02:58.3]} 4.
O-O {[%clk 0:03:02.3]} 4... a6 {[%clk 0:02:55.8]} 5. Bd3 {[%clk 0:03:02.3]} 5...
Ngf6 {[%clk 0:02:51.6]} 6. Re1 {[%clk 0:03:02.3]} 6... e6 {[%clk 0:02:47.5]} 7.
c3 {[%clk 0:03:02.2]} 7... b5 {[%clk 0:02:47.4]} 8. a4 {[%clk 0:03:00.5]} 8...
c4 {[%clk 0:02:46.2]} 9. Bc2 {[%clk 0:03:00.8]} 9... Bb7 {[%clk 0:02:45]} 10. d4
{[%clk 0:02:59.9]} 10... cxd3 {[%clk 0:02:44.5]} 11. Qxd3 {[%clk 0:03:00.2]}
11... Nc5 {[%clk 0:02:44.1]} 12. Qe2 {[%clk 0:02:59.4]} 12... bxa4 {[%clk
0:02:42.5]} 13. Be3 {[%clk 0:02:59.7]} 13... Nfd7 {[%clk 0:02:20.8]} 14. Bd4
{[%clk 0:02:59.4]} 14... Qc7 {[%clk 0:02:05.7]} 15. Nbd2 {[%clk 0:02:17.2]}
15... Rb8 {[%clk 0:01:52.7]} 16. e5 {[%clk 0:01:59.2]} 16... Bxf3 {[%clk
0:01:50.6]} 17. Nxf3 {[%clk 0:01:58]} 17... Rxb2 {[%clk 0:01:50.2]} 18. exd6
{[%clk 0:01:51.4]} 18... Bxd6 {[%clk 0:01:49.4]} 19. Bxg7 {[%clk 0:01:49.2]}
19... Rg8 {[%clk 0:01:48.7]} 20. Bd4 {[%clk 0:01:49.2]} 20... Qc6 {[%clk
0:01:45.5]} 21. Kh1 {[%clk 0:01:26]} 21... Nb3 {[%clk 0:01:41.9]} 22. Be4 {[%clk
0:00:56.1]} 22... Rxe2 {[%clk 0:01:21.6]} 23. Bxc6 {[%clk 0:00:56.1]} 23...
Rxe1+ {[%clk 0:01:22.5]} 24. Rxe1 {[%clk 0:00:56.6]} 24... a3 {[%clk 0:01:23.4]}
25. Ba4 {[%clk 0:00:29.1]} 25... Nxd4 {[%clk 0:01:22.7]} 26. Nxd4 {[%clk
0:00:29.5]} 26... Rg5 {[%clk 0:01:22.7]} 27. g3 {[%clk 0:00:19.3]} 27... Ra5
{[%clk 0:01:21.2]} 28. Bb3 {[%clk 0:00:19.3]} 28... Rc5 {[%clk 0:01:06.3]} 29.
Re3 {[%clk 0:00:09.6]} 29... Be5 {[%clk 0:01:06.2]} 30. Ba2 {[%clk 0:00:05]}
30... Rc8 {[%clk 0:00:48.7]} 31. Nc2 {[%clk 0:00:05]} 31... Bd6 {[%clk
0:00:42.9]} 32. c4 {[%clk 0:00:05.2]} 32... Rb8 {[%clk 0:00:40]} 33. Rb3 {[%clk
0:00:02.5]} 33... Rxb3 {[%clk 0:00:38.8]} 34. Bxb3 {[%clk 0:00:03.4]} 34... Nc5
{[%clk 0:00:36]} 35. Ba2 {[%clk 0:00:03.2]} 35... Nd3 {[%clk 0:00:36.3]} 36. c5
{[%clk 0:00:01.9]} 36... Bxc5 {[%clk 0:00:36.3]} 37. Bc4 {[%clk 0:00:02.8]}
37... Nc1 {[%clk 0:00:35.2]} 38. Bxa6 {[%clk 0:00:02.9]} 38... a2 {[%clk
0:00:33.3]} 39. Bb5+ {[%clk 0:00:03.1]} 39... Ke7 {[%clk 0:00:33]} 40. Bc4
{[%clk 0:00:03.6]} 40... Bxf2 {[%clk 0:00:32.8]} 41. Kg2 {[%clk 0:00:04.2]}
41... Bb6 {[%clk 0:00:31.5]} 42. Kf3 {[%clk 0:00:04]} 42... Ba5 {[%clk 0:00:32]}
43. Ke3 {[%clk 0:00:02.7]} 43... Bc3 {[%clk 0:00:32.1]} 44. Bxa2 {[%clk
0:00:01.6]} 44... Nxa2 {[%clk 0:00:33]} 45. Ke4 {[%clk 0:00:02.3]} 45... f5+
{[%clk 0:00:30]} 46. Kf3 {[%clk 0:00:02.6]} 46... h5 {[%clk 0:00:27.9]} 47. Ne3
{[%clk 0:00:03]} 47... Bd4 {[%clk 0:00:26.7]} 48. Ng2 {[%clk 0:00:02.9]} 48...
e5 {[%clk 0:00:26]} 49. Nh4 {[%clk 0:00:03.1]} 49... Kf6 {[%clk 0:00:26.1]} 50.
Ke2 {[%clk 0:00:04]} 50... Nc3+ {[%clk 0:00:25.7]} 51. Kd3 {[%clk 0:00:04.9]}
51... e4+ {[%clk 0:00:26.4]} 52. Kxd4 {[%clk 0:00:04.9]} 52... Nd1 {[%clk
0:00:16.2]} 53. Ng2 {[%clk 0:00:05.2]} 53... Kg5 {[%clk 0:00:16.4]} 54. h3
{[%clk 0:00:05.9]} 54... Nf2 {[%clk 0:00:16]} 55. Nf4 {[%clk 0:00:04.8]} 55...
h4 {[%clk 0:00:16.2]} 56. Ne2 {[%clk 0:00:04.9]} 56... Nxh3 {[%clk 0:00:06.7]}
57. gxh4+ {[%clk 0:00:05.1]} 57... Kxh4 {[%clk 0:00:07.6]} 58. Ke5 {[%clk
0:00:05.5]} 58... Kg4 {[%clk 0:00:07.8]} 59. Nd4 {[%clk 0:00:06.1]} 59... e3
{[%clk 0:00:06.2]} 60. Nxf5 {[%clk 0:00:06.6]} 60... e2 {[%clk 0:00:06.3]} 61.
Ne3+ {[%clk 0:00:07.5]} 61... Kf3 {[%clk 0:00:05.3]} 62. Nc2 {[%clk 0:00:07.8]}
62... Nf4 {[%clk 0:00:02.6]} 63. Nd4+ {[%clk 0:00:08.1]} 63... Kf2 {[%clk
0:00:02]} 64. Nxe2 {[%clk 0:00:09]} 1/2-1/2

[Event "*** Titled Tuesday Blitz"]
[Site "Chess.com"]
[Date "2021.04.06"]
[Round "9"]
[White "Legendinunknown"]
[Black "chessdiamant"]
[Result "1-0"]
[WhiteElo "2608"]
[BlackElo "2393"]
[TimeControl "180+1"]
[EndTime "11:47:06 PDT"]
[Termination "Legendinunknown won by checkmate"]

1. d4 {[%clk 0:03:00.9]} 1... Nf6 {[%clk 0:02:59.3]} 2. c4 {[%clk 0:03:00.3]}
2... g6 {[%clk 0:02:59.3]} 3. Nc3 {[%clk 0:03:01]} 3... Bg7 {[%clk 0:03:00.2]}
4. e4 {[%clk 0:03:01.4]} 4... d6 {[%clk 0:03:00.8]} 5. Nf3 {[%clk 0:03:02.1]}
5... O-O {[%clk 0:02:56.4]} 6. Be2 {[%clk 0:03:02.6]} 6... Nbd7 {[%clk
0:02:56.2]} 7. Be3 {[%clk 0:03:01.6]} 7... e5 {[%clk 0:02:55.2]} 8. d5 {[%clk
0:03:00.7]} 8... Ng4 {[%clk 0:02:55]} 9. Qd2 {[%clk 0:02:59]} 9... Nxe3 {[%clk
0:02:54.6]} 10. Qxe3 {[%clk 0:02:59.9]} 10... a5 {[%clk 0:02:54]} 11. O-O-O
{[%clk 0:02:57.9]} 11... Nc5 {[%clk 0:02:53]} 12. Nd2 {[%clk 0:02:57.5]} 12...
f5 {[%clk 0:02:52.7]} 13. f3 {[%clk 0:02:56]} 13... a4 {[%clk 0:02:49.7]} 14. h4
{[%clk 0:02:54.5]} 14... h5 {[%clk 0:02:40.6]} 15. Rdg1 {[%clk 0:02:51.3]} 15...
Kh7 {[%clk 0:02:40]} 16. g4 {[%clk 0:02:47.6]} 16... fxg4 {[%clk 0:02:39.2]} 17.
fxg4 {[%clk 0:02:48.5]} 17... Bh6 {[%clk 0:02:39.3]} 18. Qg3 {[%clk 0:02:39.3]}
18... Bf4 {[%clk 0:02:01.6]} 19. Qg2 {[%clk 0:02:37.3]} 19... hxg4 {[%clk
0:01:43.5]} 20. Bxg4 {[%clk 0:02:35.2]} 20... Bxg4 {[%clk 0:01:38.6]} 21. Qxg4
{[%clk 0:02:36.1]} 21... Qf6 {[%clk 0:01:38.7]} 22. Rf1 {[%clk 0:02:23.1]} 22...
a3 {[%clk 0:01:29.3]} 23. b3 {[%clk 0:02:10.3]} 23... Bxd2+ {[%clk 0:01:06.9]}
24. Kxd2 {[%clk 0:02:08.2]} 24... Qxf1 {[%clk 0:01:06.3]} 25. Rxf1 {[%clk
0:02:09.1]} 25... Rxf1 {[%clk 0:01:07.1]} 26. h5 {[%clk 0:02:09.5]} 26... Rf6
{[%clk 0:00:58.5]} 27. Qh4 {[%clk 0:01:58.5]} 27... Raf8 {[%clk 0:00:31.7]} 28.
b4 {[%clk 0:01:51.2]} 28... Rf2+ {[%clk 0:00:30.8]} 29. Kd1 {[%clk 0:01:50.2]}
29... Rf1+ {[%clk 0:00:14.7]} 30. Kd2 {[%clk 0:01:48.5]} 30... R8f2+ {[%clk
0:00:13.4]} 31. Ne2 {[%clk 0:01:47.1]} 31... Na6 {[%clk 0:00:08.2]} 32. hxg6+
{[%clk 0:01:28.7]} 32... Kxg6 {[%clk 0:00:09.1]} 33. Qg4+ {[%clk 0:01:28.9]}
33... Kf7 {[%clk 0:00:09.3]} 34. Qd7+ {[%clk 0:01:28.4]} 34... Kf6 {[%clk
0:00:09.2]} 35. Qd8+ {[%clk 0:01:26.4]} 35... Kf7 {[%clk 0:00:08.1]} 36. b5
{[%clk 0:01:26.2]} 36... Nc5 {[%clk 0:00:05.4]} 37. Qxc7+ {[%clk 0:01:26.4]}
37... Kg8 {[%clk 0:00:05.4]} 38. Qd8+ {[%clk 0:01:24.6]} 38... Rf8 {[%clk
0:00:05.1]} 39. Qg5+ {[%clk 0:01:24.4]} 39... Kf7 {[%clk 0:00:04.6]} 40. Ng3
{[%clk 0:01:21.6]} 40... Ke8 {[%clk 0:00:03.9]} 41. Qh5+ {[%clk 0:01:19.5]}
41... R1f7 {[%clk 0:00:03.8]} 42. Nf1 {[%clk 0:01:20.4]} 42... Kd8 {[%clk
0:00:03.4]} 43. Ng3 {[%clk 0:01:18]} 43... Kc7 {[%clk 0:00:03.3]} 44. Ke3 {[%clk
0:01:17]} 44... Kb6 {[%clk 0:00:02.3]} 45. Qh6 {[%clk 0:01:14.4]} 45... Rf6
{[%clk 0:00:03.2]} 46. Qg7 {[%clk 0:01:13.7]} 46... R8f7 {[%clk 0:00:03.6]} 47.
Qg4 {[%clk 0:01:13.2]} 47... Ka5 {[%clk 0:00:03.6]} 48. Nf5 {[%clk 0:01:07]}
48... Kb4 {[%clk 0:00:03.4]} 49. Qe2 {[%clk 0:01:04.8]} 49... Nxe4 {[%clk
0:00:03.7]} 50. Kxe4 {[%clk 0:01:04.3]} 50... Rxf5 {[%clk 0:00:04]} 51. Qd2+
{[%clk 0:01:03.7]} 51... Kc5 {[%clk 0:00:04.2]} 52. Qe3+ {[%clk 0:01:03.4]}
52... Kb4 {[%clk 0:00:04.6]} 53. Qb3+ {[%clk 0:01:03.3]} 53... Kc5 {[%clk
0:00:04.6]} 54. Qxa3+ {[%clk 0:01:03.8]} 54... Kxc4 {[%clk 0:00:05.1]} 55. Qxd6
{[%clk 0:01:00.8]} 55... Kxb5 {[%clk 0:00:05.4]} 56. Qe6 {[%clk 0:00:57.7]}
56... R7f6 {[%clk 0:00:05.7]} 57. Qd7+ {[%clk 0:00:57.6]} 57... Kc5 {[%clk
0:00:05.8]} 58. Qc7+ {[%clk 0:00:56.8]} 58... Kb5 {[%clk 0:00:03.6]} 59. Qxb7+
{[%clk 0:00:57.1]} 59... Kc5 {[%clk 0:00:04.5]} 60. Qc7+ {[%clk 0:00:57.3]}
60... Kb5 {[%clk 0:00:04.6]} 61. d6 {[%clk 0:00:57.7]} 61... Rf4+ {[%clk
0:00:04.8]} 62. Kd5 {[%clk 0:00:58.1]} 62... Rd4+ {[%clk 0:00:04.4]} 63. Kxe5
{[%clk 0:00:58.3]} 63... Rdxd6 {[%clk 0:00:04.5]} 64. Qb7+ {[%clk 0:00:57.3]}
64... Rb6 {[%clk 0:00:04]} 65. Qd5+ {[%clk 0:00:57.5]} 65... Ka4 {[%clk
0:00:04.1]} 66. Qc4+ {[%clk 0:00:57]} 66... Rb4 {[%clk 0:00:02.9]} 67. Qc2+
{[%clk 0:00:56.6]} 67... Ka3 {[%clk 0:00:02.5]} 68. Kxf6 {[%clk 0:00:55.8]}
68... Rb2 {[%clk 0:00:03.4]} 69. Qc3+ {[%clk 0:00:51.8]} 69... Kxa2 {[%clk
0:00:04.3]} 70. Ke5 {[%clk 0:00:51.8]} 70... Rb3 {[%clk 0:00:04.7]} 71. Qa5+
{[%clk 0:00:50.1]} 71... Kb2 {[%clk 0:00:05]} 72. Kd4 {[%clk 0:00:48.7]} 72...
Kc2 {[%clk 0:00:05.3]} 73. Qa2+ {[%clk 0:00:47.9]} 73... Rb2 {[%clk 0:00:05.5]}
74. Qc4+ {[%clk 0:00:48.5]} 74... Kd2 {[%clk 0:00:04.9]} 75. Qc3+ {[%clk
0:00:47.8]} 75... Kd1 {[%clk 0:00:05.2]} 76. Qxb2 {[%clk 0:00:48.5]} 76... Ke1
{[%clk 0:00:06]} 77. Ke3 {[%clk 0:00:49.1]} 77... Kf1 {[%clk 0:00:06.9]} 78.
Qf2# {[%clk 0:00:49.2]} 1-0

[Event "*** Titled Tuesday Blitz"]
[Site "Chess.com"]
[Date "2021.04.06"]
[Round "9"]
[White "federicosellitti"]
[Black "1977Ivan"]
[Result "1-0"]
[WhiteElo "2619"]
[BlackElo "2753"]
[TimeControl "180+1"]
[EndTime "11:47:07 PDT"]
[Termination "federicosellitti won on time"]

1. e4 {[%clk 0:03:00.9]} 1... c5 {[%clk 0:02:58]} 2. Nc3 {[%clk 0:03:01.2]} 2...
Nc6 {[%clk 0:02:57.4]} 3. g3 {[%clk 0:03:01.7]} 3... g6 {[%clk 0:02:56.2]} 4.
Bg2 {[%clk 0:03:02.2]} 4... Bg7 {[%clk 0:02:56.8]} 5. d3 {[%clk 0:03:02.8]} 5...
d6 {[%clk 0:02:57]} 6. Be3 {[%clk 0:03:03.1]} 6... Nh6 {[%clk 0:02:57.4]} 7. h3
{[%clk 0:02:58.6]} 7... f5 {[%clk 0:02:57.6]} 8. Qd2 {[%clk 0:02:31.5]} 8... Nf7
{[%clk 0:02:56.8]} 9. Nge2 {[%clk 0:02:22.3]} 9... Nd4 {[%clk 0:02:53.4]} 10.
O-O-O {[%clk 0:02:12.5]} 10... Qa5 {[%clk 0:02:25.7]} 11. Kb1 {[%clk 0:01:58.2]}
11... fxe4 {[%clk 0:01:42.6]} 12. dxe4 {[%clk 0:01:51.2]} 12... Nxe2 {[%clk
0:01:41.5]} 13. Nxe2 {[%clk 0:01:48.6]} 13... Qxd2 {[%clk 0:01:36.9]} 14. Bxd2
{[%clk 0:01:45.2]} 14... O-O {[%clk 0:01:36.4]} 15. Bc3 {[%clk 0:01:44.7]} 15...
Bd7 {[%clk 0:01:34.3]} 16. Bxg7 {[%clk 0:01:43.8]} 16... Kxg7 {[%clk 0:01:35.2]}
17. f4 {[%clk 0:01:42.2]} 17... Bc6 {[%clk 0:01:34.7]} 18. Nc3 {[%clk
0:01:38.7]} 18... Rae8 {[%clk 0:01:24.3]} 19. Rd2 {[%clk 0:01:19.2]} 19... b5
{[%clk 0:01:02.9]} 20. Rhd1 {[%clk 0:01:06]} 20... b4 {[%clk 0:01:02.4]} 21. Nd5
{[%clk 0:01:06.6]} 21... Bxd5 {[%clk 0:01:00.8]} 22. Rxd5 {[%clk 0:01:07.5]}
22... e5 {[%clk 0:00:54.3]} 23. c3 {[%clk 0:00:36]} 23... bxc3 {[%clk 0:00:47]}
24. bxc3 {[%clk 0:00:36]} 24... exf4 {[%clk 0:00:41.3]} 25. gxf4 {[%clk
0:00:36.9]} 25... Nh6 {[%clk 0:00:41.1]} 26. Rxd6 {[%clk 0:00:23.7]} 26... Rxf4
{[%clk 0:00:40.4]} 27. Rd7+ {[%clk 0:00:24.3]} 27... Nf7 {[%clk 0:00:37.2]} 28.
R1d2 {[%clk 0:00:16]} 28... Kh6 {[%clk 0:00:35.3]} 29. Rxa7 {[%clk 0:00:13.4]}
29... Ne5 {[%clk 0:00:35.2]} 30. Kc2 {[%clk 0:00:13.9]} 30... Nc4 {[%clk
0:00:33.4]} 31. Rdd7 {[%clk 0:00:13.3]} 31... Ne3+ {[%clk 0:00:31.5]} 32. Kd3
{[%clk 0:00:13.8]} 32... Nxg2 {[%clk 0:00:31.3]} 33. Rxh7+ {[%clk 0:00:14]}
33... Kg5 {[%clk 0:00:31.5]} 34. Rae7 {[%clk 0:00:12.8]} 34... Rxe7 {[%clk
0:00:30.2]} 35. Rxe7 {[%clk 0:00:13.7]} 35... Rf3+ {[%clk 0:00:30.4]} 36. Kc4
{[%clk 0:00:13.7]} 36... Rxh3 {[%clk 0:00:29.6]} 37. a4 {[%clk 0:00:14.4]} 37...
Rh1 {[%clk 0:00:26.9]} 38. Kxc5 {[%clk 0:00:12.1]} 38... Ra1 {[%clk 0:00:26.3]}
39. Kb5 {[%clk 0:00:11.3]} 39... Ne3 {[%clk 0:00:26]} 40. c4 {[%clk 0:00:10.7]}
40... Kf4 {[%clk 0:00:25.9]} 41. Rg7 {[%clk 0:00:08.4]} 41... g5 {[%clk
0:00:25.5]} 42. e5 {[%clk 0:00:08]} 42... Nf5 {[%clk 0:00:21.8]} 43. Rg8 {[%clk
0:00:05.8]} 43... g4 {[%clk 0:00:15.6]} 44. e6 {[%clk 0:00:05.8]} 44... g3
{[%clk 0:00:15.7]} 45. a5 {[%clk 0:00:05.7]} 45... Ke5 {[%clk 0:00:12.7]} 46. e7
{[%clk 0:00:05.1]} 46... Rb1+ {[%clk 0:00:10.3]} 47. Kc5 {[%clk 0:00:03.6]}
47... Nxe7 {[%clk 0:00:10]} 48. Rxg3 {[%clk 0:00:03.9]} 48... Ke6 {[%clk
0:00:10.3]} 49. Re3+ {[%clk 0:00:03.9]} 49... Kd7 {[%clk 0:00:10.3]} 50. a6
{[%clk 0:00:04.6]} 50... Nc6 {[%clk 0:00:09.5]} 51. Rh3 {[%clk 0:00:04.4]} 51...
Nb4 {[%clk 0:00:08.8]} 52. Rh7+ {[%clk 0:00:04.2]} 52... Ke6 {[%clk 0:00:08.4]}
53. Rh6+ {[%clk 0:00:03.3]} 53... Ke5 {[%clk 0:00:08.2]} 54. a7 {[%clk
0:00:03.9]} 54... Nd3+ {[%clk 0:00:07.4]} 55. Kc6 {[%clk 0:00:04.2]} 55... Ra1
{[%clk 0:00:07.5]} 56. Kb7 {[%clk 0:00:04.7]} 56... Rb1+ {[%clk 0:00:05.9]} 57.
Rb6 {[%clk 0:00:05.2]} 57... Nc5+ {[%clk 0:00:05.9]} 58. Kc6 {[%clk 0:00:05.8]}
58... Ra1 {[%clk 0:00:03.9]} 59. Kxc5 {[%clk 0:00:05.9]} 59... Rxa7 {[%clk
0:00:03.7]} 60. Kb5 {[%clk 0:00:06.4]} 60... Ra1 {[%clk 0:00:03]} 61. c5 {[%clk
0:00:06.5]} 61... Rc1 {[%clk 0:00:03.1]} 62. Kc6 {[%clk 0:00:07]} 62... Kd4
{[%clk 0:00:02.7]} 63. Rb5 {[%clk 0:00:07.6]} 63... Rc4 {[%clk 0:00:01.1]} 64.
Kb6 {[%clk 0:00:06.9]} 1-0

[Event "*** Titled Tuesday Blitz"]
[Site "Chess.com"]
[Date "2021.04.06"]
[Round "9"]
[White "Cuajada_Zero"]
[Black "annacramling"]
[Result "1-0"]
[WhiteElo "2317"]
[BlackElo "2088"]
[TimeControl "180+1"]
[EndTime "11:47:07 PDT"]
[Termination "Cuajada_Zero won by checkmate"]

1. d4 {[%clk 0:03:00.9]} 1... Nf6 {[%clk 0:02:57.6]} 2. Bg5 {[%clk 0:03:00.2]}
2... e6 {[%clk 0:02:56.8]} 3. e4 {[%clk 0:02:59.4]} 3... Be7 {[%clk 0:02:54.5]}
4. e5 {[%clk 0:02:59.2]} 4... Nd5 {[%clk 0:02:52.2]} 5. Bxe7 {[%clk 0:03:00.1]}
5... Nxe7 {[%clk 0:02:51.1]} 6. Qg4 {[%clk 0:02:58.8]} 6... O-O {[%clk
0:02:50.6]} 7. Bd3 {[%clk 0:02:57.7]} 7... f5 {[%clk 0:02:45.4]} 8. exf6 {[%clk
0:02:55.7]} 8... Rxf6 {[%clk 0:02:45.2]} 9. Nf3 {[%clk 0:02:52.8]} 9... d6
{[%clk 0:02:42.4]} 10. Nbd2 {[%clk 0:02:20]} 10... e5 {[%clk 0:02:37.1]} 11. Qe4
{[%clk 0:02:19.1]} 11... Bf5 {[%clk 0:02:31.4]} 12. Qxb7 {[%clk 0:02:18.4]}
12... Nd7 {[%clk 0:02:27.5]} 13. Bxf5 {[%clk 0:02:10.1]} 13... Nxf5 {[%clk
0:02:21.5]} 14. dxe5 {[%clk 0:02:04.4]} 14... Nxe5 {[%clk 0:02:12.6]} 15. O-O
{[%clk 0:01:54.4]} 15... Nxf3+ {[%clk 0:01:52.2]} 16. Nxf3 {[%clk 0:01:49.9]}
16... Ne7 {[%clk 0:01:41.9]} 17. Rfe1 {[%clk 0:01:42.9]} 17... Ng6 {[%clk
0:01:37.3]} 18. Re4 {[%clk 0:01:21.9]} 18... Rxf3 {[%clk 0:01:33.1]} 19. gxf3
{[%clk 0:01:13.6]} 19... Ne5 {[%clk 0:01:25.6]} 20. f4 {[%clk 0:01:03.8]} 20...
Ng4 {[%clk 0:01:08.9]} 21. Rae1 {[%clk 0:00:54.1]} 21... Rb8 {[%clk 0:00:54.6]}
22. Qxb8 {[%clk 0:00:50.1]} 22... Qxb8 {[%clk 0:00:50.9]} 23. Re8+ {[%clk
0:00:49.1]} 23... Qxe8 {[%clk 0:00:51.2]} 24. Rxe8+ {[%clk 0:00:49.9]} 24... Kf7
{[%clk 0:00:51.6]} 25. Ra8 {[%clk 0:00:49.6]} 25... Ke6 {[%clk 0:00:36.3]} 26.
Rxa7 {[%clk 0:00:48.9]} 26... Kd7 {[%clk 0:00:34.6]} 27. a4 {[%clk 0:00:46]}
27... Nf6 {[%clk 0:00:34.3]} 28. Kg2 {[%clk 0:00:41.1]} 28... Nd5 {[%clk
0:00:33.3]} 29. Kf3 {[%clk 0:00:38.8]} 29... Kc6 {[%clk 0:00:28]} 30. Ra8 {[%clk
0:00:37.6]} 30... Kb7 {[%clk 0:00:21.8]} 31. Rg8 {[%clk 0:00:31.2]} 31... g6
{[%clk 0:00:16.6]} 32. Rg7 {[%clk 0:00:23.8]} 32... Nf6 {[%clk 0:00:12.2]} 33.
Rf7 {[%clk 0:00:22.1]} 33... Nd5 {[%clk 0:00:08.2]} 34. Rxh7 {[%clk 0:00:20]}
34... Nb4 {[%clk 0:00:08.2]} 35. c3 {[%clk 0:00:17.2]} 35... Nd3 {[%clk
0:00:07.2]} 36. Rg7 {[%clk 0:00:16]} 36... Nxb2 {[%clk 0:00:06.7]} 37. Rxg6
{[%clk 0:00:15.6]} 37... Nxa4 {[%clk 0:00:06.9]} 38. h4 {[%clk 0:00:15.7]} 38...
Nxc3 {[%clk 0:00:07.3]} 39. h5 {[%clk 0:00:14.9]} 39... Nd5 {[%clk 0:00:07.6]}
40. h6 {[%clk 0:00:13.3]} 40... Ne7 {[%clk 0:00:07.8]} 41. Rf6 {[%clk 0:00:10]}
41... Ng8 {[%clk 0:00:07.3]} 42. h7 {[%clk 0:00:10.1]} 42... Nxf6 {[%clk
0:00:07.1]} 43. h8=Q {[%clk 0:00:10.3]} 43... Nd5 {[%clk 0:00:06.8]} 44. Qb2+
{[%clk 0:00:10.1]} 44... Kc6 {[%clk 0:00:06.5]} 45. Qc2+ {[%clk 0:00:08.6]}
45... Kb5 {[%clk 0:00:02.7]} 46. Kg4 {[%clk 0:00:06.8]} 46... c5 {[%clk
0:00:02.4]} 47. f5 {[%clk 0:00:06.1]} 47... Nf6+ {[%clk 0:00:02.7]} 48. Kg5
{[%clk 0:00:06.2]} 48... Nd7 {[%clk 0:00:01.9]} 49. f6 {[%clk 0:00:06.5]} 49...
Ne5 {[%clk 0:00:02.4]} 50. Kf5 {[%clk 0:00:05.7]} 50... Nd7 {[%clk 0:00:02.1]}
51. Ke6 {[%clk 0:00:05.7]} 51... Nf8+ {[%clk 0:00:02.3]} 52. Kf7 {[%clk
0:00:05.9]} 52... Nd7 {[%clk 0:00:02.4]} 53. Ke7 {[%clk 0:00:05.8]} 53... Ne5
{[%clk 0:00:02.4]} 54. f7 {[%clk 0:00:06.4]} 54... Nxf7 {[%clk 0:00:02.8]} 55.
Kxf7 {[%clk 0:00:06.7]} 55... d5 {[%clk 0:00:03.7]} 56. Ke6 {[%clk 0:00:07]}
56... d4 {[%clk 0:00:04]} 57. Kd5 {[%clk 0:00:07.2]} 57... d3 {[%clk 0:00:04.4]}
58. Qxc5+ {[%clk 0:00:07.2]} 58... Ka4 {[%clk 0:00:04.4]} 59. Qd4+ {[%clk
0:00:06.8]} 59... Kb3 {[%clk 0:00:04.3]} 60. Qxd3+ {[%clk 0:00:07.7]} 60... Kb2
{[%clk 0:00:04.7]} 61. Qc4 {[%clk 0:00:08]} 61... Ka1 {[%clk 0:00:05]} 62. Qb5
{[%clk 0:00:07.4]} 62... Ka2 {[%clk 0:00:04.9]} 63. Kc4 {[%clk 0:00:07.3]} 63...
Ka3 {[%clk 0:00:05.4]} 64. Kc3 {[%clk 0:00:07.4]} 64... Ka2 {[%clk 0:00:05.7]}
65. Qb2# {[%clk 0:00:07.6]} 1-0